bitfinex/quotes_ETHUSD_20251120
["timestamp","ask_amount","ask_price","bid_price","bid_amount"]
[1763656749732,0.137,2879.2,2877.7,0.4859]
[1763656749928,0.137,2879.2,2877.7,1.39289264]
[1763656750135,0.137,2879.2,2878.1,0.405504]
[1763656750464,0.137,2880.4,2878.5,1.31249664]
[1763656750633,0.38483162,2881.4,2879.6,0.405504]
[1763656750845,0.51647336,2881.3,2879.8,0.405504]
[1763656751045,0.61647336,2881.3,2879.3,0.405504]
[1763656751483,0.4819,2881.2,2879.2,0.891404]
[1763656751688,0.4819,2881.2,2879.4,0.405504]
[1763656751893,0.4819,2881.2,2879.6,0.405504]
[1763656752186,0.4811,2881.2,2879.6,0.405504]
[1763656752389,0.1905,2881.4,2879.8,1.31249664]
[1763656752555,0.002,2881.5,2879.8,1.31249664]
[1763656752893,0.22707336,2881.5,2879.8,1.31249664]
[1763656753094,0.22707336,2881.5,2878.6,0.85733595]
[1763656753095,0.22707336,2881.5,2878.8,0.4859]
[1763656753393,0.1,2880.4,2878.6,0.85733595]
[1763656753594,0.136,2880.3,2878.7,1.42763054]
[1763656753798,0.54465501,2881.3,2879.2,0.90699264]
[1763656753996,0.54465501,2881.3,2880.3,7.26086287]
[1763656754145,0.002,2881.5,2880.3,7.26086287]
[1763656754349,0.002,2881.5,2880.5,0.405504]
[1763656754662,0.002,2881.4,2880.5,0.405504]
[1763656754843,0.002,2881.4,2880.4,0.72608629]
[1763656755058,0.002,2881.4,2880.3,0.4859]
[1763656755259,0.4819,2881.3,2879.8,0.4859]
[1763656755547,0.03657336,2881.4,2879.9,1.31249664]
[1763656755548,0.002,2881.4,2879.9,1.31249664]
[1763656755985,0.002,2881.4,2880.1,0.405504]
[1763656756375,0.002,2881.4,2880.3,0.405504]
[1763656756782,0.002,2881.4,2880.0,0.405504]
[1763656757099,0.002,2881.4,2880.4,1.31249664]
[1763656757262,0.002,2881.4,2880.9,1.31249664]
[1763656757603,0.002,2881.4,2881.1,0.405504]
[1763656757890,0.002,2881.4,2881.3,8.57335951]
[1763656758385,0.002,2881.4,2881.3,9.05925951]
[1763656758597,0.002,2881.4,2881.3,7.26086287]
[1763656758781,0.002,2881.4,2879.6,0.673]
[1763656758782,0.6744,2881.4,2879.6,0.673]
[1763656758981,0.002,2881.4,2880.1,7.26086287]
[1763656759150,0.4819,2881.3,2879.8,0.405504]
[1763656759350,0.002,2881.4,2880.2,1.31249664]
[1763656759665,0.002,2881.4,2880.4,0.405504]
[1763656759863,0.002,2881.4,2880.4,0.58534366]
[1763656760066,0.002,2881.4,2880.4,1.07124366]
[1763656760259,0.002,2881.4,2880.4,1.9782363]
[1763656760548,0.002,2881.4,2880.4,1.07124366]
[1763656760748,0.002,2881.4,2880.5,1.39289264]
[1763656760998,0.002,2881.4,2880.2,0.90699264]
[1763656761360,0.002,2881.4,2880.3,0.4859]
[1763656761748,0.002,2881.4,2880.7,0.90699264]
[1763656761951,0.002,2881.4,2880.8,0.405504]
[1763656762184,0.002,2881.4,2880.4,0.90699264]
[1763656762367,0.002,2881.4,2880.6,7.26086287]
[1763656762688,0.002,2881.4,2880.5,0.405504]
[1763656762689,0.002,2881.4,2881.3,0.592604]
[1763656763049,0.002,2881.7,2881.4,0.405504]
[1763656763249,0.002,2881.7,2881.6,8.57335951]
[1763656763474,0.002,2881.7,2881.6,9.05925951]
[1763656763935,0.002,2881.7,2881.6,1.31249664]
[1763656764109,0.002,2881.7,2881.4,0.405504]
[1763656764266,0.002,2881.7,2881.6,0.405504]
[1763656764754,0.002,2881.7,2881.3,0.592604]
[1763656765072,0.002,2881.7,2881.5,0.405504]
[1763656765650,0.002,2881.7,2881.4,0.405504]
[1763656765867,0.002,2881.7,2881.4,0.891404]
[1763656766086,0.002,2881.7,2881.4,0.405504]
[1763656766411,0.002,2881.7,2880.9,0.1871]
[1763656766619,0.002,2881.7,2881.0,7.26086287]
[1763656766776,0.002,2881.7,2881.6,0.90699264]
[1763656767119,0.002,2881.7,2881.6,1.79839664]
[1763656767767,0.002,2881.7,2881.6,5.26869092]
[1763656767961,0.002,2881.7,2881.6,1.79839664]
[1763656769366,0.002,2881.7,2881.6,1.31249664]
[1763656769596,0.002,2881.7,2881.6,2.62623259]
[1763656769797,0.002,2883.3,2882.0,0.405504]
[1763656770010,0.002,2883.3,2883.2,8.70525951]
[1763656770408,0.002,2883.3,2883.2,9.16165951]
[1763656770613,0.002,2883.6,2883.3,1.31249664]
[1763656770845,0.002,2883.6,2883.5,0.405504]
[1763656771043,0.002,2883.6,2883.5,0.861904]
[1763656771426,0.002,2883.9,2883.5,0.861904]
[1763656771628,0.6844,2885.2,2884.0,6.93481276]
[1763656771936,0.6755,2886.0,2884.6,7.26086287]
[1763656772144,0.51957336,2885.8,2884.1,7.66636687]
[1763656772325,0.485,2885.8,2884.2,0.90699264]
[1763656772531,0.485,2885.8,2884.3,0.405504]
[1763656773113,0.1994,2886.1,2885.1,7.26086287]
[1763656773298,0.1994,2886.1,2884.9,0.405504]
[1763656773499,0.485,2886.0,2885.0,7.26086287]
[1763656773743,0.485,2886.0,2885.1,0.405504]
[1763656773928,0.1994,2886.1,2885.1,0.405504]
[1763656773929,0.1994,2886.1,2885.1,2.07913333]
[1763656774306,0.6844,2886.1,2885.1,1.31249664]
[1763656774539,0.54358906,2886.8,2885.1,1.31249664]
[1763656774540,0.54358906,2886.8,2886.0,7.26086287]
[1763656774749,0.03457336,2886.7,2884.4,0.4564]
[1763656775049,0.1,2887.1,2885.3,0.405504]
[1763656775226,0.03457336,2887.0,2885.3,0.90699264]
[1763656775549,0.485,2887.1,2885.8,1.31249664]
[1763656775842,0.1994,2887.3,2885.4,1.36339264]
[1763656775843,0.6844,2887.3,2886.3,1.31249664]
[1763656776070,0.485,2888.0,2886.7,7.26086287]
[1763656776216,0.0012,2887.7,2886.8,1.31249664]
[1763656776601,0.0012,2887.7,2886.7,0.72608629]
[1763656776807,0.0012,2887.7,2886.5,0.4564]
[1763656776808,0.0012,2887.7,2886.9,1.31249664]
[1763656777224,0.0012,2887.7,2887.0,0.4564]
[1763656777421,0.0012,2887.7,2887.6,7.26086287]
[1763656777738,0.0012,2887.7,2887.6,7.66636687]
[1763656778139,0.0012,2887.7,2887.1,7.26086287]
[1763656778338,0.0012,2887.7,2887.2,0.405504]
[1763656778540,0.0012,2887.7,2887.6,7.26086287]
[1763656778743,0.0012,2887.7,2887.6,8.63835551]
[1763656778959,0.002,2888.2,2887.7,1.31249664]
[1763656779286,0.002,2888.2,2888.1,8.57335951]
[1763656779433,0.6374,2890.4,2888.2,1.31249664]
[1763656779771,0.1814,2890.4,2888.4,0.596504]
[1763656779939,0.1814,2890.4,2888.1,0.85733595]
[1763656779940,0.456,2889.8,2888.5,7.26086287]
[1763656780139,0.456,2889.8,2888.1,1.31249664]
[1763656780350,0.456,2889.8,2888.0,3.76435951]
[1763656780557,0.03457336,2889.7,2888.0,3.76435951]
[1763656780725,0.03457336,2889.7,2887.5,7.26086287]
[1763656780935,0.03457336,2889.7,2887.3,0.1391]
[1763656780936,0.456,2889.6,2887.3,0.1391]
[1763656781171,0.21597336,2889.5,2887.2,7.26086287]
[1763656781373,0.1,2889.2,2887.2,7.98694916]
[1763656781540,0.456,2889.4,2887.2,7.98694916]
[1763656781741,0.456,2889.4,2887.7,7.26086287]
[1763656782077,0.134,2889.3,2887.7,7.26086287]
[1763656782256,0.456,2889.2,2887.2,7.26086287]
[1763656782427,0.1,2889.0,2887.3,0.90699264]
[1763656782780,0.1,2889.0,2887.2,8.33331742]
[1763656782781,0.1,2888.8,2886.3,7.26086287]
[1763656783062,0.1,2888.0,2886.3,7.26086287]
[1763656783272,0.1,2888.0,2886.4,0.90699264]
[1763656783438,0.456,2887.9,2886.4,0.81678555]
[1763656783772,0.456,2887.9,2886.4,0.90699264]
[1763656784130,0.456,2887.9,2886.5,0.405504]
[1763656784680,0.456,2887.9,2886.3,7.26086287]
[1763656784910,0.456,2887.9,2885.9,0.1917]
[1763656784911,0.13457336,2887.8,2885.9,0.1917]
[1763656785118,0.13457336,2887.8,2885.8,7.26086287]
[1763656785274,0.13457336,2887.8,2885.4,0.1391]
[1763656785275,0.1,2887.2,2885.4,3.6047953]
[1763656785575,0.03457336,2887.6,2885.4,0.1391]
[1763656785789,0.1,2886.9,2885.4,3.6048152]
[1763656786006,0.456,2886.9,2885.9,0.90699264]
[1763656786180,0.456,2886.9,2886.0,0.405504]
[1763656786565,0.1814,2887.1,2886.0,1.26283995]
[1763656786771,0.1814,2887.1,2886.1,0.405504]
[1763656786991,0.1814,2887.1,2885.6,0.90699264]
[1763656786992,0.456,2887.0,2885.6,0.90699264]
[1763656787194,0.456,2887.0,2885.5,7.73136287]
[1763656787195,0.456,2887.0,2885.5,0.4705]
[1763656787391,0.456,2887.0,2885.5,7.26086287]
[1763656787579,0.1,2886.8,2885.5,7.26086287]
[1763656787780,0.1,2886.8,2885.0,7.73136287]
[1763656788105,0.456,2886.7,2885.1,0.90699264]
[1763656788324,0.456,2886.7,2885.0,11.98475366]
[1763656788325,0.1,2886.5,2885.0,8.51854916]
[1763656788512,0.1,2886.5,2885.1,0.90699264]
[1763656788802,0.456,2886.7,2885.2,0.405504]
[1763656789378,0.456,2886.7,2885.6,1.31249664]
[1763656790313,0.456,2886.9,2885.6,1.31249664]
[1763656790474,0.556,2887.0,2885.6,1.31249664]
[1763656791020,0.556,2887.0,2884.8,0.1405]
[1763656791021,0.1,2886.7,2885.1,0.405504]
[1763656791184,0.1,2886.7,2885.1,1.31249664]
[1763656791367,0.456,2886.7,2885.6,1.31249664]
[1763656791572,0.456,2887.0,2885.6,1.31249664]
[1763656791805,0.556,2887.0,2885.6,1.31249664]
[1763656791991,0.1,2886.7,2885.6,1.31249664]
[1763656792216,0.456,2887.0,2885.6,1.31249664]
[1763656792616,0.456,2887.0,2885.7,0.405504]
[1763656793046,0.456,2887.0,2885.0,7.26186287]
[1763656793336,0.456,2887.0,2885.1,0.90699264]
[1763656793337,0.1,2886.9,2885.1,0.90699264]
[1763656793542,0.1,2886.7,2885.1,0.90699264]
[1763656793742,0.556,2886.9,2885.1,0.90699264]
[1763656793946,0.1,2886.3,2885.1,0.90699264]
[1763656794305,0.1,2886.3,2885.0,0.001]
[1763656794306,0.456,2886.2,2885.0,0.001]
[1763656794506,0.1,2886.0,2885.0,0.001]
[1763656794730,0.456,2886.2,2885.0,0.001]
[1763656795130,0.456,2886.2,2885.0,0.406504]
[1763656795874,0.456,2886.2,2885.1,0.03466084]
[1763656796044,0.456,2886.2,2885.0,0.001]
[1763656796248,0.456,2886.2,2885.0,0.406504]
[1763656796539,0.133,2886.3,2885.4,0.90699264]
[1763656796748,0.133,2886.3,2885.5,0.405504]
[1763656797651,0.3144,2886.3,2885.4,0.90699264]
[1763656798017,0.1814,2886.6,2885.5,0.405504]
[1763656798229,0.1814,2886.6,2885.9,7.26086287]
[1763656798519,0.6374,2886.6,2885.5,0.405504]
[1763656798756,0.67197336,2886.6,2885.0,0.001]
[1763656798956,0.456,2886.5,2885.0,0.406504]
[1763656799257,0.456,2886.5,2885.0,0.001]
[1763656799454,0.1,2886.0,2885.0,0.001]
[1763656799671,0.1,2886.3,2885.0,0.001]
[1763656799870,0.49057336,2886.4,2885.0,0.001]
[1763656800071,0.1,2885.9,2885.0,0.001]
[1763656800276,0.456,2885.9,2885.0,0.001]
[1763656801198,2.8361,2885.4,2884.4,0.001]
[1763656801334,0.90699264,2885.7,2881.6,3.31690778]
[1763656801335,4.56999264,2884.8,2882.5,6.63301072]
[1763656801538,0.133,2884.7,2883.1,0.90699264]
[1763656801740,0.589,2884.7,2883.6,0.90699264]
[1763656801939,0.456,2884.6,2883.2,0.191]
[1763656802166,0.456,2884.6,2881.6,0.85733595]
[1763656802348,0.456,2884.6,2881.8,0.4705]
[1763656802349,0.1,2883.4,2881.8,0.4705]
[1763656802550,0.133,2883.3,2881.8,0.4705]
[1763656802772,0.133,2883.3,2882.2,0.90699264]
[1763656802952,0.133,2883.3,2882.1,6.16251072]
[1763656803152,0.133,2883.3,2882.2,0.61625107]
[1763656803388,0.556,2883.2,2880.9,6.35351072]
[1763656803664,0.1,2883.1,2881.4,6.16251072]
[1763656803880,0.456,2883.0,2881.5,0.61625107]
[1763656804064,0.1,2882.7,2881.6,0.03470294]
[1763656804266,0.1,2882.7,2881.0,0.4705]
[1763656804439,0.1,2882.4,2880.9,6.35351072]
[1763656804635,0.1,2882.4,2881.0,0.90699264]
[1763656804837,0.6374,2882.3,2880.8,0.001]
[1763656805265,0.456,2882.2,2880.8,0.001]
[1763656805463,0.1,2882.1,2880.8,0.001]
[1763656805670,0.133,2882.0,2880.8,0.001]
[1763656805886,0.1,2881.8,2880.8,0.001]
[1763656806097,0.456,2881.7,2880.8,0.001]
[1763656806280,0.1,2881.1,2880.8,0.001]
[1763656806462,0.90699264,2881.5,2880.5,0.001]
[1763656806665,0.456,2881.6,2878.8,0.4705]
[1763656806848,0.90699264,2881.7,2878.2,0.191]
[1763656806849,0.405504,2881.1,2878.2,0.191]
[1763656807050,2.076469,2880.7,2878.2,0.191]
[1763656807277,0.90699264,2880.9,2878.2,0.191]
[1763656807278,0.132,2880.6,2878.2,0.191]
[1763656807480,0.1,2880.1,2878.6,0.4705]
[1763656807671,0.456,2880.5,2879.4,6.16251072]
[1763656807868,0.456,2880.5,2879.5,1.52324371]
[1763656808183,0.456,2880.5,2879.0,0.001]
[1763656808678,0.1,2879.9,2879.0,0.001]
[1763656808911,0.1,2879.5,2879.0,0.001]
[1763656809115,0.132,2880.6,2879.0,0.001]
[1763656809116,0.2812,2879.8,2879.0,0.001]
[1763656809420,0.1812,2879.8,2879.0,0.001]
[1763656809710,0.5812,2879.7,2879.0,0.001]
[1763656810012,0.1,2879.5,2879.0,0.001]
[1763656810184,0.1,2879.1,2879.0,0.001]
[1763656810368,0.4812,2879.1,2879.0,0.001]
[1763656811167,0.002,2880.2,2879.0,0.001]
[1763656811368,0.002,2880.2,2879.0,6.64901072]
[1763656811575,0.4812,2880.1,2879.1,0.68306107]
[1763656811792,0.4812,2880.1,2879.0,0.001]
[1763656812269,0.1,2879.5,2879.0,0.001]
[1763656812473,0.132,2879.4,2879.0,0.001]
[1763656812707,0.3132,2879.4,2879.0,0.001]
[1763656813300,0.132,2879.4,2879.0,0.001]
[1763656814209,0.1,2879.2,2879.0,0.001]
[1763656814809,0.6768603,2879.4,2879.0,0.001]
[1763656815016,0.4812,2879.3,2879.0,0.001]
[1763656815221,0.4812,2879.3,2878.4,0.001]
[1763656815222,1.38819264,2879.3,2878.4,0.001]
[1763656815401,0.1812,2878.5,2878.4,0.001]
[1763656815802,0.6624,2878.5,2878.4,0.001]
[1763656816591,0.7624,2878.5,2878.4,0.001]
[1763656816792,0.6624,2878.5,2878.4,0.001]
[1763656816993,0.7624,2878.5,2878.4,0.001]
[1763656817288,0.1,2878.2,2877.4,0.001]
[1763656817489,0.132,2878.1,2877.4,0.001]
[1763656817687,0.6132,2878.1,2877.4,0.001]
[1763656818019,0.1,2877.4,2875.5,0.4855]
[1763656818201,0.4812,2878.0,2875.2,7.13762369]
[1763656818202,0.4812,2878.0,2876.5,0.90699264]
[1763656818426,0.4812,2878.0,2876.7,0.405504]
[1763656818607,0.4812,2877.9,2875.9,0.001393]
[1763656818788,0.1,2877.7,2875.9,0.486893]
[1763656818988,0.1,2877.7,2875.9,1.39388564]
[1763656819204,0.5812,2877.6,2875.9,0.001393]
[1763656819447,0.405504,2877.5,2875.9,0.001393]
[1763656819616,0.1,2876.8,2875.9,0.001393]
[1763656819792,0.1,2876.6,2875.9,0.001393]
[1763656820211,0.4812,2876.5,2875.9,0.001393]
[1763656820392,0.1,2876.3,2875.9,0.001393]
[1763656820729,0.5812,2876.5,2875.9,0.001393]
[1763656820894,0.133,2876.7,2875.9,0.001393]
[1763656821079,0.133,2876.7,2875.9,0.406897]
[1763656821284,0.133,2876.7,2876.0,0.4855]
[1763656821532,0.4812,2878.2,2876.6,0.1779]
[1763656821817,0.4812,2878.2,2876.7,0.891004]
[1763656821818,0.133,2878.1,2876.7,0.891004]
[1763656822024,0.133,2878.1,2876.9,0.405504]
[1763656822245,0.133,2878.1,2876.7,0.891004]
[1763656822246,0.6142,2878.1,2876.7,0.405504]
[1763656822556,0.1,2877.9,2876.5,0.583404]
[1763656822711,0.133,2878.1,2876.6,0.03476326]
[1763656823062,0.133,2878.1,2877.5,1.31249664]
[1763656823237,0.1812,2879.8,2878.1,0.405504]
[1763656823238,0.133,2879.4,2878.1,0.405504]
[1763656823759,0.133,2879.4,2878.6,1.31249664]
[1763656823951,0.133,2879.4,2878.6,0.405504]
[1763656824156,0.1322,2879.4,2878.4,1.31249664]
[1763656824450,0.002,2880.5,2879.2,0.405504]
[1763656824752,0.002,2880.5,2877.7,3.47490277]
[1763656824753,0.4812,2880.1,2877.7,3.47490277]
[1763656824913,0.57938755,2880.0,2878.2,0.405504]
[1763656825113,0.57938755,2880.0,2877.7,0.405504]
[1763656825114,0.1,2879.3,2877.7,0.405504]
[1763656825322,0.03457336,2879.2,2876.9,0.4855]
[1763656825550,0.1,2878.8,2877.0,0.39615845]
[1763656825750,0.1,2878.8,2876.9,0.4855]
[1763656825976,0.6142,2879.1,2876.9,0.4855]
[1763656825977,0.1,2878.5,2876.9,0.4855]
[1763656826175,0.1,2878.5,2876.7,0.20106599]
[1763656826176,0.13457336,2878.5,2876.7,0.20106599]
[1763656826377,0.4812,2878.5,2876.7,4.16274719]
[1763656826579,0.4812,2878.5,2876.8,0.41627472]
[1763656826740,0.4812,2879.0,2877.0,6.16251072]
[1763656826942,0.4812,2879.0,2877.6,0.90699264]
[1763656827141,0.51577336,2878.9,2876.9,0.4855]
[1763656827452,0.1,2878.7,2877.0,1.31249664]
[1763656827660,0.03457336,2878.6,2877.1,0.79605074]
[1763656827983,0.1,2878.0,2876.7,0.20106599]
[1763656828189,0.133,2877.9,2876.8,0.4855]
[1763656828391,0.133,2877.9,2876.6,0.001]
[1763656828547,0.133,2877.9,2876.6,0.4865]
[1763656828739,0.6142,2877.9,2876.6,0.001]
[1763656829244,0.4812,2877.8,2876.6,0.001]
[1763656829952,0.1,2877.6,2876.6,0.001]
[1763656830351,0.1,2877.3,2876.6,0.001]
[1763656830557,0.4698,2877.5,2876.6,0.001]
[1763656831182,0.1,2877.3,2876.6,0.001]
[1763656831344,0.4698,2877.2,2876.6,0.001]
[1763656831546,0.1838,2876.7,2876.6,0.001]
[1763656831788,0.133,2876.7,2876.6,0.001]
[1763656832145,0.6028,2876.7,2876.6,0.001]
[1763656832456,0.133,2876.7,2876.6,0.001]
[1763656834699,0.7028,2876.7,2876.6,0.001]
[1763656834886,0.6028,2876.7,2876.6,0.001]
[1763656835049,0.7028,2876.7,2876.6,0.001]
[1763656835250,0.6028,2876.7,2876.6,0.001]
[1763656835743,0.7028,2876.7,2876.6,0.001]
[1763656835951,0.6028,2876.7,2876.6,0.001]
[1763656836301,0.7028,2876.7,2876.6,0.001]
[1763656836475,0.6028,2876.7,2876.6,0.001]
[1763656836903,0.7028,2876.7,2876.6,0.001]
[1763656838166,1.24820892,2876.7,2876.6,0.001]
[1763656838365,1.71770357,2876.7,2876.6,0.001]
[1763656838891,1.81770357,2876.7,2876.6,0.001]
[1763656839052,1.32380357,2876.7,2876.6,0.001]
[1763656839255,0.133,2876.7,2876.6,0.001]
[1763656841100,0.133,2876.7,2876.6,0.4574]
[1763656841301,0.132,2877.7,2876.6,2.02648371]
[1763656842131,0.132,2877.7,2876.7,0.4564]
[1763656842432,0.132,2877.7,2876.6,1.57008371]
[1763656842433,0.13457336,2877.6,2876.6,0.001]
[1763656842726,0.1,2877.2,2876.6,0.001]
[1763656842929,0.4939,2877.5,2876.6,0.001]
[1763656842930,0.03457336,2877.4,2876.6,0.001]
[1763656843087,0.13457336,2877.4,2876.6,0.001]
[1763656843288,0.1,2877.3,2876.6,0.001]
[1763656843502,0.13457336,2877.2,2875.8,1.08859264]
[1763656843801,0.4939,2877.4,2875.8,0.1816]
[1763656844001,0.1,2877.2,2875.8,0.1816]
[1763656844188,0.1,2877.0,2875.8,0.1816]
[1763656844525,0.1,2876.8,2875.8,0.1816]
[1763656844903,0.4939,2877.1,2875.8,0.1816]
[1763656845421,0.52847336,2877.0,2875.4,0.638]
[1763656845726,0.03457336,2876.9,2875.4,0.638]
[1763656845888,0.4939,2876.8,2875.4,0.638]
[1763656846093,0.1,2876.7,2875.4,0.1816]
[1763656846422,0.1,2876.5,2875.9,0.002393]
[1763656846991,0.132,2876.6,2875.9,0.002393]
[1763656847213,0.132,2876.6,2876.0,0.4564]
[1763656847930,0.132,2876.6,2875.9,0.90938564]
[1763656848226,0.132,2876.6,2876.0,1.16358964]
[1763656848227,0.1312,2876.6,2876.0,1.16358964]
[1763656849216,0.1312,2876.6,2875.9,0.002393]
[1763656850699,0.1312,2876.6,2876.0,0.4564]
[1763656851326,0.1312,2876.6,2876.1,0.0347693]
[1763656851527,0.1312,2876.6,2876.1,0.405504]
[1763656851835,0.1312,2876.6,2876.2,0.4564]
[1763656851994,0.1312,2876.6,2876.4,6.16251072]
[1763656852196,0.1312,2876.6,2876.5,0.61625107]
[1763656852519,0.1312,2876.6,2876.5,1.07265107]
[1763656852894,0.1312,2876.6,2876.4,6.16251072]
[1763656853095,0.1312,2876.6,2876.5,0.4564]
[1763656853641,0.1312,2876.6,2876.4,6.16251072]
[1763656853842,0.1312,2876.6,2876.5,0.4564]
[1763656854005,0.002,2878.7,2876.6,0.405504]
[1763656854006,0.131,2877.9,2876.6,0.405504]
[1763656854335,0.131,2877.9,2876.7,0.17688966]
[1763656854544,0.131,2877.9,2876.7,0.63328966]
[1763656854699,0.4939,2877.8,2876.6,0.1779]
[1763656854899,0.1,2877.6,2876.6,0.1779]
[1763656855099,0.1,2877.6,2876.3,6.16251072]
[1763656855305,0.1,2877.2,2876.3,6.16251072]
[1763656855501,0.1,2877.2,2876.3,6.60651382]
[1763656855736,0.1,2877.2,2876.2,0.4564]
[1763656855900,0.4939,2877.2,2875.9,0.002393]
[1763656856107,0.03457336,2877.1,2875.9,0.002393]
[1763656856740,0.1901,2876.1,2875.9,0.002393]
[1763656857238,0.131,2876.1,2875.9,0.002393]
[1763656857624,0.06823323,2876.1,2875.9,0.002393]
[1763656858037,0.1,2877.3,2876.0,0.4564]
[1763656858206,0.52847336,2877.2,2876.0,0.66213037]
[1763656858398,0.86638058,2877.5,2876.1,0.4911693]
[1763656858600,0.1,2877.3,2876.1,1.39816194]
[1763656858806,0.96638058,2877.5,2876.1,1.36339264]
[1763656859006,0.86638058,2877.5,2876.2,0.4564]
[1763656859250,0.86638058,2877.5,2876.2,0.2025523]
[1763656859251,0.1,2877.2,2876.2,0.2025523]
[1763656859408,0.1,2877.2,2876.0,1.56912301]
[1763656859606,0.1,2877.1,2876.0,1.56912301]
[1763656860344,0.1,2877.1,2876.0,2.02552301]
[1763656860503,0.5939,2877.4,2876.1,0.4564]
[1763656860902,0.1,2877.4,2876.5,6.87594791]
[1763656861206,0.1,2877.4,2876.1,7.33234791]
[1763656861741,0.1,2877.3,2876.1,7.33234791]
[1763656861929,0.1,2877.1,2876.2,0.1816]
[1763656862304,0.52847336,2877.0,2875.9,0.002393]
[1763656862613,0.1,2876.6,2875.9,0.002393]
[1763656863018,0.73147441,2877.4,2875.9,0.002393]
[1763656863019,0.4939,2877.2,2875.9,0.002393]
[1763656863210,0.1,2876.9,2875.9,0.458793]
[1763656863410,0.96638058,2877.5,2876.0,0.405504]
[1763656863619,0.1,2877.3,2876.1,0.4564]
[1763656864017,0.67628058,2877.5,2876.6,7.34278442]
[1763656864355,0.54522136,2878.4,2877.4,0.1999]
[1763656864656,0.1,2878.2,2877.4,0.1999]
[1763656864840,0.6249,2878.6,2877.1,0.4564]
[1763656865155,0.131,2878.6,2877.4,1.31249664]
[1763656865362,0.131,2878.6,2878.5,0.1596]
[1763656865558,0.002,2878.7,2878.5,0.1596]
[1763656865721,0.002,2878.7,2878.5,0.616]
[1763656866327,0.002,2878.7,2878.6,0.861904]
[1763656866563,0.002,2878.7,2878.6,5.24280756]
[1763656866747,0.002,2878.7,2878.6,6.22115095]
[1763656866950,0.002,2879.4,2878.7,8.80201664]
[1763656867139,0.002,2879.4,2878.7,0.4564]
[1763656867340,0.4939,2879.3,2877.9,1.84873261]
[1763656867538,0.54487747,2879.2,2878.0,7.26413403]
[1763656867866,0.002,2879.4,2878.0,7.26413403]
[1763656867867,0.002,2879.4,2878.1,1.36339264]
[1763656868061,0.002,2879.4,2878.2,0.861904]
[1763656868362,0.002,2879.4,2878.6,1.31249664]
[1763656868666,0.002,2879.4,2878.6,2.17015971]
[1763656868873,0.002,2879.4,2878.8,0.405504]
[1763656869225,0.002,2879.4,2878.9,0.405504]
[1763656869665,0.002,2879.4,2879.1,0.405504]
[1763656870172,0.002,2879.4,2878.6,1.76465571]
[1763656870337,0.002,2879.4,2878.7,1.79678297]
[1763656870525,0.002,2879.4,2878.7,0.4884]
[1763656870727,0.002,2879.4,2877.9,0.31487326]
[1763656870728,0.13657336,2879.4,2878.0,0.4884]
[1763656870969,0.03457336,2879.3,2878.0,0.4884]
[1763656871188,0.03457336,2879.3,2877.7,7.38513403]
[1763656871189,0.1,2879.0,2877.7,7.38513403]
[1763656871336,0.4697,2879.2,2877.4,0.4884]
[1763656871541,0.1,2878.3,2877.0,0.1945]
[1763656871781,0.1,2877.9,2877.0,0.1945]
[1763656871938,0.1,2877.9,2876.5,0.6883]
[1763656872144,0.1813,2877.5,2876.5,0.1999]
[1763656872566,0.1813,2877.5,2876.2,7.26413403]
[1763656872567,0.0992,2877.3,2876.2,7.26413403]
[1763656872767,0.0992,2877.3,2876.2,8.03948743]
[1763656872983,0.4697,2878.0,2876.7,7.26413403]
[1763656873140,0.0992,2877.7,2876.7,7.26413403]
[1763656873544,0.4697,2878.0,2876.8,1.39539264]
[1763656873767,0.4697,2878.0,2876.6,0.1372]
[1763656873977,0.0992,2877.8,2876.6,0.1372]
[1763656874143,0.0992,2877.9,2876.6,0.6256]
[1763656874569,0.0992,2877.8,2876.7,0.405504]
[1763656874808,0.0992,2878.0,2876.9,0.405504]
[1763656874989,0.2988,2878.2,2876.9,0.405504]
[1763656875140,0.13,2878.2,2877.2,7.26413403]
[1763656875340,0.13,2878.2,2877.3,1.31249664]
[1763656875542,0.13,2878.2,2877.3,1.80089664]
[1763656875792,0.13,2878.2,2877.5,0.405504]
[1763656876291,0.13,2878.2,2877.4,0.4884]
[1763656876450,0.13,2878.2,2877.3,0.90699264]
[1763656876786,0.13,2878.2,2876.9,1.39490307]
[1763656877007,0.54509,2878.1,2877.0,0.23018957]
[1763656877291,0.13,2878.2,2877.0,0.71858957]
[1763656877657,0.13,2878.2,2877.2,0.02]
[1763656877859,0.2292,2878.2,2877.2,0.02]
[1763656878102,0.1813,2877.3,2877.2,0.02]
[1763656878418,0.90699264,2877.1,2876.0,0.001]
[1763656878670,0.0992,2876.1,2876.0,0.001]
[1763656878994,0.405504,2876.4,2876.0,0.001]
[1763656879311,0.13,2876.3,2876.0,0.001]
[1763656879644,0.4164,2876.3,2876.0,0.001]
[1763656879939,0.0992,2876.1,2876.0,0.001]
[1763656880441,1.29259264,2876.1,2876.0,0.001]
[1763656880650,0.0992,2876.1,2876.0,0.001]
[1763656881311,0.13,2876.3,2876.0,0.001]
[1763656882207,0.13,2876.3,2876.1,0.4884]
[1763656882460,0.13,2876.3,2876.0,0.001]
[1763656882984,0.13,2876.3,2876.0,0.4894]